Cogmind - Beta 10.2 @@@ ROGUE MODE // 2021.06.22 @ 18:40:38 Player: cavemonk Result: Destroyed by G-50 Soldier with Heavy Laser Performance ------------- Evolutions (4) 2000 Regions Visited (14) 2800 Robots Destroyed (120) 600 Value Destroyed (3059) 3059 Prototype IDs (48) 960 Alien Tech Used (0) 0 Bonus (8) 8 TOTAL SCORE: 9427 Bonus ------- High Alert Combat Kills 87 Follower Combat Kills 125 Aligned with FarCom 300 Met Data Miner 300 Friendly Fire -804 Cogmind --------- Core Integrity 0/850 Matter 289/300 Energy 98/100 System Corruption 11% Temperature Cool (18) Movement Core (50) Location -6/Factory Parts ------- > --- POWER (1) -------- (None) > --- PROPULSION (4) --- (None) > --- UTILITY (8) ------ (None) > --- WEAPON (2) ------- (None) > --- INVENTORY (4) ---- Improved Deuterium Engine Faulty F-cell Engine Peak State ------------ > --- POWER ------------ Neutrino Core > --- PROPULSION ------- Medium Treads Improved Medium Treads Armored Huge Wheel > --- UTILITY ---------- Advanced Heat Sink High-capacity Storage Unit Humpback Long-range Sensor Array Energy Filter Layered Medium Armor Plating Reactive Plating > --- WEAPON ----------- Heavy EM Shotgun Tesla Rifle > --- INVENTORY -------- Improved Deuterium Engine Light Angular Momentum Engine Light Angular Momentum Engine Nuclear Pulse Thruster Advanced Heat Sink High-capacity Storage Unit High-capacity Storage Unit High-capacity Storage Unit High-capacity Battery Improved Energy Well Long-range Sensor Array Long-range Sensor Array Long-range Sensor Array Improved Signal Interpreter Armor Integrity Analyzer Armor Integrity Analyzer Improved Utility Shielding Reactive Plating Improved Shield Generator Long-range Tractor Beam Heavy EM Shotgun Heavy EM Shotgun Heavy EM Shotgun Heavy EM Shotgun Heavy Laser Plasma Rifle Flak Gun Precision Assault Rifle Precision Assault Rifle Coil Gun Grenade Launcher Ripper [Rating: 68] Favorites ----------- Power Heavy Ion Engine Engine Heavy Ion Engine Power Core Neutrino Core Propulsion Light Treads Treads Light Treads Leg Aluminum Leg Wheel Armored Huge Wheel Utility High-capacity Storage Unit Device Improved Heat Sink Storage High-capacity Storage Unit Processor Improved Signal Interpreter Protection Reactive Plating Weapon Heavy EM Shotgun Energy Gun Heavy EM Shotgun Energy Cannon Ion Cannon Ballistic Gun Assault Rifle Launcher Grenade Launcher Impact Weapon Heavy Hammer Slashing Weapon Ripper Build | -11 -10 -10 -10 -9 -8 -8 -7 -7 -7 -7 -6 -6 -6 -6 ------- Run | Scr Mat Min Exi Min Mat Sto Fac Low Low Dat Pro Fac Was Fac Slots Evolved 8 | . . . . . 4 . 2 . . . . 2 . . Power . | . . . . . . . . . . . . . . . Propulsion 2 | . . . . . . . 1 . . . . 1 . . Utility 6 | . . . . . 4 . 1 . . . . 1 . . Weapon . | . . . . . . . . . . . . . . . Parts Attached 159 | 5 14 13 1 . 36 33 22 1 12 . 11 8 . 3 Power 9 | . 1 2 . . 3 1 1 1 . . . . . . Engine 6 | . 1 2 . . 1 1 1 . . . . . . . Core 3 | . . . . . 2 . . 1 . . . . . . Reactor . | . . . . . . . . . . . . . . . Propulsion 31 | 4 9 5 . . 4 5 2 . . . . 1 . 1 Treads 22 | 1 5 4 . . 4 5 1 . . . . 1 . 1 Leg 1 | 1 . . . . . . . . . . . . . . Wheel 8 | 2 4 1 . . . . 1 . . . . . . . Hover . | . . . . . . . . . . . . . . . Flight . | . . . . . . . . . . . . . . . Utility 64 | 1 2 . 1 . 21 9 8 . 8 . 7 5 . 2 Device 41 | 1 . . . . 17 4 6 . 5 . 3 3 . 2 Storage 6 | . 2 . 1 . . . . . 1 . 2 . . . Processor 2 | . . . . . 1 1 . . . . . . . . Hackware . | . . . . . . . . . . . . . . . Protection 15 | . . . . . 3 4 2 . 2 . 2 2 . . Artifact . | . . . . . . . . . . . . . . . Weapon 55 | . 2 6 . . 8 18 11 . 4 . 4 2 . . Energy Gun 25 | . . 3 . . 2 8 6 . 3 . 2 1 . . Energy Cannon 6 | . . 1 . . 5 . . . . . . . . . Ballistic Gun 12 | . 2 2 . . . 4 4 . . . . . . . Ballistic Cannon . | . . . . . . . . . . . . . . . Launcher 8 | . . . . . 1 4 1 . 1 . 1 . . . Special Weapon . | . . . . . . . . . . . . . . . Impact Weapon 2 | . . . . . . 2 . . . . . . . . Slashing Weapon 2 | . . . . . . . . . . . 1 1 . . Piercing Weapon . | . . . . . . . . . . . . . . . Special Melee Weapon . | . . . . . . . . . . . . . . . Unidentified Prototypes 6 | . . . . . 2 1 2 . . . 1 . . . Parts Lost 16 | . . 2 . . 2 2 . . . . 3 1 3 3 Power 1 | . . . . . . . . . . . . 1 . . Propulsion 4 | . . 1 . . . 1 . . . . . . 1 1 Utility 7 | . . . . . . . . . . . 3 . 2 2 Weapon 4 | . . 1 . . 2 1 . . . . . . . . Highest Loss Streak 3 | . . 2 . . 2 1 . . . . 3 1 3 2 Average Slot Usage (%) 92 | . 99 99 100 100 99 100 91 91 88 69 82 78 54 5 Engine 7 | . 13 13 14 14 6 9 7 3 . . . . . . Core 1 | . . . . . 2 . . 3 7 7 7 5 . . Treads 15 | . 15 24 28 28 18 18 12 7 7 7 7 9 7 1 Wheel 3 | . 13 3 . . . . 1 7 7 7 7 6 4 . Device 11 | . 11 . . . 16 12 12 15 18 23 17 14 15 3 Storage 17 | . 16 28 28 28 18 18 15 15 11 7 11 13 10 . Processor 5 | . . . . . 8 9 7 7 7 7 6 . . . Protection 8 | . . . . . 9 14 17 15 10 7 7 14 7 . Energy Gun 10 | . 6 9 14 14 9 12 10 . 14 . 14 6 3 . Energy Cannon 1 | . . 3 . . 8 1 . . . . . . . . Ballistic Gun 6 | . 21 14 14 14 . 2 3 15 . . . . . . Naked Turns 95 | . . . . . . . . . . . . . 16 79 Heaviest Build 180 | 14 55 60 76 76 101 101 113 108 180 110 144 157 143 3 Greatest Support 43 | 20 40 40 40 40 40 43 40 28 28 28 28 28 28 3 Greatest Overweight (x) 6 | 1 5 5 1 1 5 2 4 3 6 3 5 5 5 . Average Overweight (x) 2 | . 2 2 1 1 2 2 2 3 3 3 4 5 2 . Largest Inventory Capacity 40 | 6 18 18 20 20 20 20 20 20 40 24 32 32 32 4 Average Capacity 19 | 6 9 18 18 20 20 20 20 20 22 24 28 32 27 4 Most Carried 32 | 6 18 18 20 20 20 20 20 20 22 24 27 32 32 2 Average Carried 18 | 5 8 17 18 20 19 19 19 19 20 23 25 30 27 1 Final Capacity 32 | 6 18 18 20 20 20 20 20 20 24 24 32 32 4 4 Final Carried 32 | 4 18 18 20 20 20 20 20 20 22 24 27 32 . 2 Class Distribution -------------------- 70% | Hauler-Mutant 24% | Mutant 5% | Scavenger-Mutant Dominant Class ---------------- Mutant | -10/Materials Mutant | -10/Mines Mutant | -10/Exiles Hauler-Mutant | -9/Mines Hauler-Mutant | -8/Materials Hauler-Mutant | -8/Storage Hauler-Mutant | -7/Factory Hauler-Mutant | -7/Lower Caves Hauler-Mutant | -7/Lower Caves Hauler-Mutant | -7/Data Miner Hauler-Mutant | -6/Proximity Caves Hauler-Mutant | -6/Factory Hauler-Mutant | -6/Waste Mutant | -6/Factory Resources | -11 -10 -10 -10 -9 -8 -8 -7 -7 -7 -7 -6 -6 -6 -6 ----------- Run | Scr Mat Min Exi Min Mat Sto Fac Low Low Dat Pro Fac Was Fac Matter Collected 2693 | 250 200 180 . . 419 762 177 118 285 . 205 46 . 51 Remotely . | . . . . . . . . . . . . . . . Salvage Created 4421 | 135 341 308 . . 715 1518 596 109 227 . 383 46 . 43 Parts 243 | 6 31 20 . . 40 74 33 5 11 . 14 4 . 5 Haulers Intercepted 9 | . 2 . . . 2 5 . . . . . . . . Recyclers Shooed 6 | . . 1 . . . 3 2 . . . . . . . Parts Field Recycled . | . . . . . . . . . . . . . . . Retrieved Matter . | . . . . . . . . . . . . . . . Parts Self-Destructed 14 | . . . . . . . . . . . 14 . . . Prevented 18 | . . . . . . . . . 9 . 9 . . . Kills | -11 -10 -10 -10 -9 -8 -8 -7 -7 -7 -7 -6 -6 -6 -6 ------- Run | Scr Mat Min Exi Min Mat Sto Fac Low Low Dat Pro Fac Was Fac Combat Hostiles Destroyed 79 | . 11 7 . . 16 26 11 . 4 . 3 1 . . Melee 1 | . . . . . . . . . . . . 1 . . Guns 44 | . 11 2 . . 7 17 7 . . . . . . . Cannons 12 | . . 5 . . 6 1 . . . . . . . . AOE 16 | . . . . . 3 7 3 . 3 . . . . . Classes Destroyed 14 | 2 5 1 . . 2 1 1 1 1 . . . . . Worker 11 | . . 1 . . 3 3 2 . . . . . . 2 Builder 4 | . 1 1 . . . . 2 . . . . . . . Tunneler 3 | 2 . . . . . 1 . . . . . . . . Hauler 9 | . 2 . . . 2 5 . . . . . . . . Recycler 6 | 1 . . . . . 5 . . . . . . . . Watcher 5 | . 1 . . . 1 2 1 . . . . . . . Swarmer 28 | . 9 3 . . 7 6 . . 3 . . . . . Grunt 29 | . 2 4 . . 4 11 5 . . . 3 . . . Brawler 2 | . . . . . 2 . . . . . . . . . Sentry 11 | . . . . . 3 7 1 . . . . . . . Hunter 4 | . . . . . . 2 1 . 1 . . . . . Programmer 5 | . . . . . . . 4 . . . . 1 . . Enhanced Grunt 1 | . . . . . . . . . . . 1 . . . Packrat 1 | . . . . . . . . . 1 . . . . . Samaritan 2 | . . . . . . . . 2 . . . . . . Thug 1 | . . 1 . . . . . . . . . . . . Mutant 1 | . . . . . . . . . 1 . . . . . Best Kill Streak 11 | 2 3 3 . . 8 11 5 . 3 . 3 1 . 1 Combat Bots Only 7 | . 3 3 . . 4 7 3 . 3 . 3 1 . . Max Kills in Single Turn 2 | 1 2 1 . . 2 2 2 1 2 . 1 1 . 1 Gunslinging 1 | . 1 . . . . . . . . . . . . . Exploded 2 | . . . . . 2 2 2 . 2 . . . . . Melee 1 | . . . . . . . . . . . . 1 . . Uniques/NPCs Destroyed . | . . . . . . . . . . . . . . . Combat | -11 -10 -10 -10 -9 -8 -8 -7 -7 -7 -7 -6 -6 -6 -6 -------- Run | Scr Mat Min Exi Min Mat Sto Fac Low Low Dat Pro Fac Was Fac Damage Taken 5379 | . 480 231 77 . 516 1286 506 . 112 . 756 61 204 1150 Core 1282 | . 64 15 12 . 47 83 53 . . . 149 14 35 810 Absorbed by Shields 161 | . . . . . . . . . 28 . 133 . . . Core Remaining (%) 77 | 100 . . . 63 . 76 . . . . 71 . . . Volleys Fired 306 | 6 40 20 1 . 48 117 42 10 11 . 11 . . . Largest 2 | 2 2 2 1 . 2 2 2 2 2 . 2 . . . Hottest 138 | 100 100 85 75 . 138 138 122 56 100 . 100 . . . Shots Fired 559 | 12 80 40 1 . 92 201 75 21 20 . 17 . . . Gun 432 | 12 80 28 1 . 45 150 67 21 17 . 11 . . . Cannon 79 | . . 12 . . 44 23 . . . . . . . . Launcher 48 | . . . . . 3 28 8 . 3 . 6 . . . Special . | . . . . . . . . . . . . . . . Kinetic 163 | . 60 20 . . . 59 3 21 . . . . . . Thermal 304 | 12 20 20 1 . 89 114 48 . . . . . . . Explosive 29 | . . . . . 3 15 8 . 3 . . . . . Electromagnetic 63 | . . . . . . 13 16 . 17 . 17 . . . Robot Hit Streak 38 | 8 14 8 . . 22 38 21 15 4 . 5 . . . Robot Miss Streak 7 | 1 5 2 . . 4 7 2 1 3 . 1 . . . Penetration Max . | . . . . . . . . . . . . . . . Secondary Targets 4 | . 3 . . . . 1 . . . . . . . . Max Gunslinging Chain 1 | . 1 . . . . 1 . . . . . . . . Shots Hit Robots 363 | 10 42 26 . . 65 122 52 19 14 . 10 3 . . Core Hits 207 | 4 23 15 . . 28 71 34 7 12 . 8 2 . 3 Critical Hits 3 | . . . . . . . 1 1 . . . 1 . . Critical Kills 2 | . . . . . . . 1 . . . . 1 . . Critical Parts Destroyed 1 | . . . . . . . . 1 . . . . . . Melee Attacks 11 | . . . . . . 4 . . . . 3 4 . . Impact 4 | . . . . . . 4 . . . . . . . . Slashing 7 | . . . . . . . . . . . 3 4 . . Piercing . | . . . . . . . . . . . . . . . Sneak Attacks 1 | . . . . . . 1 . . . . . . . . Combat Hostiles . | . . . . . . . . . . . . . . . Follow-up Attacks . | . . . . . . . . . . . . . . . Damage Inflicted 9921 | 126 432 473 . . 1640 3796 2026 343 465 . 492 94 . 34 Guns 5099 | 126 432 251 . . 717 1767 1089 343 249 . 125 . . . Cannons 1324 | . . 197 . . 702 425 . . . . . . . . Explosions 2964 | . . . . . 159 1358 864 . 216 . 367 . . . Melee 202 | . . . . . . 108 . . . . . 94 . . Ramming 332 | . . 25 . . 62 138 73 . . . . . . 34 Kinetic 1660 | . 293 173 . . . 791 60 343 . . . . . . Thermal 4928 | 126 139 275 . . 1419 1451 1440 . 39 . 39 . . . Explosive 1611 | . . . . . 159 1046 229 . 177 . . . . . Electromagnetic 1188 | . . . . . . 262 224 . 249 . 453 . . . Impact 108 | . . . . . . 108 . . . . . . . . Slashing 94 | . . . . . . . . . . . . 94 . . Piercing . | . . . . . . . . . . . . . . . Highest Corruption 17 | . . . . . . . 5 5 5 5 17 2 11 11 Average Corruption 5 | . . . . . . . 2 5 5 5 6 1 9 11 Corruption Purged . | . . . . . . . . . . . . . . . Effects 95 | . . . . . . . 10 11 17 1 36 1 1 18 Message Errors 25 | . . . . . . . 4 3 3 1 13 . 1 . Matter Fused 21 | . . . . . . . 1 3 5 . 9 . . 3 Heat Flow Errors 14 | . . . . . . . . 2 2 . 6 . . 4 Energy Discharges 10 | . . . . . . . 1 1 3 . 3 . . 2 Data Loss (minor) 7 | . . . . . . . 2 1 1 . 1 . . 2 Data Loss (major) 3 | . . . . . . . . . 1 . 2 . . . Misfires 4 | . . . . . . . 1 1 1 . 1 . . . Misdirections 7 | . . . . . . . . . . . . . . 7 Targeting Errors 4 | . . . . . . . 1 . 1 . 1 1 . . Overload Shots . | . . . . . . . . . . . . . . . Overflow Damage 364 | . . . . . 11 80 248 . 4 . 21 . . . Projectiles 29 | . . . . . 6 23 . . . . . . . . Explosions 325 | . . . . . . 52 248 . 4 . 21 . . . Melee 10 | . . . . . 5 5 . . . . . . . . Knockbacks 1 | . . . . . . 1 . . . . . . . . Impact 1 | . . . . . . 1 . . . . . . . . Kinetic . | . . . . . . . . . . . . . . . Secondary . | . . . . . . . . . . . . . . . Self-Inflicted Damage 298 | . . . . . 22 53 . . 61 . 146 . . 16 Shots 11 | . . . . . 1 2 . . 2 . 6 . . . Rammed 29 | . . 3 . . 3 12 6 . . . . . . 5 Targets Rammed 33 | . . 4 . . 4 14 6 . . . . . . 5 Kicked . | . . . . . . . . . . . . . . . Crushed 4 | . . 1 . . 1 2 . . . . . . . . Highest Temperature 450 | 195 195 155 34 . 450 375 196 214 342 . 203 . . 224 Average Temperature 61 | 86 60 60 22 . 49 46 71 57 84 . 62 . . 95 Received Heat Transfer 1483 | . 90 105 40 . 216 522 84 . . . 105 . . 321 Effects 2 | . . . . . 2 . . . . . . . . . Shutdowns 1 | . . . . . 1 . . . . . . . . . Matter Decay 1 | . . . . . 1 . . . . . . . . . Siege Activations . | . . . . . . . . . . . . . . . Robots Corrupted 5 | . . . . . . 1 . . 1 . 3 . . . Combat Hostiles 5 | . . . . . . 1 . . 1 . 3 . . . Parts Fried 5 | . . . . . . 1 1 . 3 . . . . . Impact Corruptions 2 | . . . . . 1 1 . . . . . . . . Robots Melted 1 | . . . . . . . 1 . . . . . . . Combat Hostiles 1 | . . . . . . . 1 . . . . . . . Parts Melted 10 | 1 1 . . . 2 . 6 . . . . . . . Heat Transferred 8159 | 370 407 592 . . 2368 2603 1719 . 50 . 50 . . . Parts Sabotaged . | . . . . . . . . . . . . . . . Parts Stolen . | . . . . . . . . . . . . . . . Parts Stripped . | . . . . . . . . . . . . . . . Power Chain Reactions 3 | . . . . . . 1 . . 1 . 1 . . . Missiles Intercepted . | . . . . . . . . . . . . . . . Alert | -11 -10 -10 -10 -9 -8 -8 -7 -7 -7 -7 -6 -6 -6 -6 ------- Run | Scr Mat Min Exi Min Mat Sto Fac Low Low Dat Pro Fac Was Fac Peak Influence 512 | 15 328 174 . . 305 512 273 . . . . 30 10 242 Initial 140 | . 9 11 . . . 62 140 . . . . . 10 . Average 157 | 9 81 30 . . 149 328 115 . . . . 1 5 92 Maximum Alert Level 2 | . 1 . . . 1 2 1 . . . . . . 1 Low Security (%) 64 | 100 80 100 . 100 69 15 81 . . . . 100 100 81 Level 1 29 | . 19 . . . 30 61 18 . . . . . . 18 Level 2 6 | . . . . . . 23 . . . . . . . . Level 3 . | . . . . . . . . . . . . . . . Level 4 . | . . . . . . . . . . . . . . . Level 5 . | . . . . . . . . . . . . . . . High Security . | . . . . . . . . . . . . . . . Max Security . | . . . . . . . . . . . . . . . Squads Dispatched 18 | . 3 . . . 1 6 6 . . . . . . 2 Investigation 7 | . 2 . . . . 3 1 . . . . . . 1 Extermination 4 | . . . . . . . 4 . . . . . . . Reinforcement 5 | . 1 . . . 1 1 1 . . . . . . 1 Assault . | . . . . . . . . . . . . . . . Garrison 2 | . . . . . . 2 . . . . . . . . Intercept . | . . . . . . . . . . . . . . . Construction Impeded 1 | . . . . . . . 1 . . . . . . . Haulers Reinforced . | . . . . . . . . . . . . . . . Stealth | -11 -10 -10 -10 -9 -8 -8 -7 -7 -7 -7 -6 -6 -6 -6 --------- Run | Scr Mat Min Exi Min Mat Sto Fac Low Low Dat Pro Fac Was Fac Distress Signals 10 | . 1 . . . 3 4 1 . . . . . . 1 Communications Jammed . | . . . . . . . . . . . . . . . Distress Signals . | . . . . . . . . . . . . . . . Times Spotted 157 | . 22 7 6 . 26 41 13 1 3 . 9 1 5 23 Peak Tracking Total 12 | . 5 3 9 . 5 6 2 2 2 . 4 1 5 12 Tactical Retreats 14 | . 2 . . . 3 2 1 1 . . . . . 5 Traps | -11 -10 -10 -10 -9 -8 -8 -7 -7 -7 -7 -6 -6 -6 -6 ------- Run | Scr Mat Min Exi Min Mat Sto Fac Low Low Dat Pro Fac Was Fac Traps Triggered 14 | . 2 . . . . 5 5 . . . . 1 . 1 Indirectly 3 | . . . . . . 3 . . . . . . . . Trap Hack Attempts . | . . . . . . . . . . . . . . . Triggered . | . . . . . . . . . . . . . . . Disarmed . | . . . . . . . . . . . . . . . Reprogrammed . | . . . . . . . . . . . . . . . Reused . | . . . . . . . . . . . . . . . Traps Extracted . | . . . . . . . . . . . . . . . Installed . | . . . . . . . . . . . . . . . Triggered 2 | . . . . . . . . . . . 2 . . . Machines | -11 -10 -10 -10 -9 -8 -8 -7 -7 -7 -7 -6 -6 -6 -6 ---------- Run | Scr Mat Min Exi Min Mat Sto Fac Low Low Dat Pro Fac Was Fac Machines Disabled 7 | . . . 1 . 2 2 2 . . . . . . . Max in Single Turn 2 | . . . 1 . 1 1 2 . . . . . . . Garrison Access 2 | . . . . . . 1 . . . . . . . 1 Machines Sabotaged . | . . . . . . . . . . . . . . . Garrisons Compromised . | . . . . . . . . . . . . . . . Overloaded Fab Kills . | . . . . . . . . . . . . . . . Fab Network Shutdowns . | . . . . . . . . . . . . . . . Hacking | -11 -10 -10 -10 -9 -8 -8 -7 -7 -7 -7 -6 -6 -6 -6 --------- Run | Scr Mat Min Exi Min Mat Sto Fac Low Low Dat Pro Fac Was Fac Machines Accessed 50 | . 7 2 1 . 9 15 7 . 1 4 . . . 4 Terminals 31 | . 6 2 . . 6 10 3 . 1 . . . . 3 Fabricators . | . . . . . . . . . . . . . . . Repair Stations 7 | . 1 . . . 2 2 2 . . . . . . . Recycling Units 2 | . . . . . . 2 . . . . . . . . Scanalyzers 3 | . . . . . 1 . 2 . . . . . . . Garrison Access 2 | . . . . . . 1 . . . . . . . 1 Total Hacks 152 | . 24 5 1 . 30 32 21 . 1 28 . . . 10 Successful 78 | . 14 2 1 . 13 9 8 . 1 28 . . . 2 Failed 73 | . 10 2 . . 17 23 13 . . . . . . 8 Catastrophic 14 | . 2 . . . 1 6 3 . . . . . . 2 Database Lockouts 1 | . . 1 . . . . . . . . . . . . Manual 55 | . 17 5 1 . 12 14 5 . . . . . . 1 Terminals 84 | . 22 5 . . 19 22 8 . 1 . . . . 7 Fabricators . | . . . . . . . . . . . . . . . Repair Stations 16 | . 2 . . . 3 5 6 . . . . . . . Recycling Units 4 | . . . . . . 4 . . . . . . . . Scanalyzers 15 | . . . . . 8 . 7 . . . . . . . Garrison Access 4 | . . . . . . 1 . . . . . . . 3 Terminal Hacks 48 | . 9 1 1 . 2 3 2 . 1 28 . . . 1 Record 12 | . . . . . . . . . 1 11 . . . . Part Schematic 10 | . . . . . . . . . . 9 . . . 1 Robot Schematic 5 | . . . . . . . . . . 5 . . . . Robot Analysis 2 | . 2 . . . . . . . . . . . . . Prototype ID Bank 6 | . 2 1 . . . . . . . 3 . . . . Open Door 1 | . . . . . . 1 . . . . . . . . Terminal Index 4 | . 1 . . . 1 1 1 . . . . . . . Fabricator Index 1 | . . . . . . . 1 . . . . . . . Unreport Threat 3 | . 2 . . . . 1 . . . . . . . . Locate Traps 1 | . 1 . . . . . . . . . . . . . Hauler Manifests 1 | . . . . . 1 . . . . . . . . . Zone Layout 1 | . 1 . . . . . . . . . . . . . EX-Prototype ID Bank 1 | . . . 1 . . . . . . . . . . . Fabricator Hacks . | . . . . . . . . . . . . . . . Repair Station Hacks 8 | . 2 . . . 2 3 1 . . . . . . . Scan Component 5 | . 1 . . . 1 2 1 . . . . . . . Repair 3 | . 1 . . . 1 1 . . . . . . . . Recycling Unit Hacks 1 | . . . . . . 1 . . . . . . . . Retrieve Components 1 | . . . . . . 1 . . . . . . . . Scanalyzer 12 | . . . . . 7 . 5 . . . . . . . Insert Component 6 | . . . . . 3 . 3 . . . . . . . Analyze 6 | . . . . . 4 . 2 . . . . . . . Garrison Access Hacks 2 | . . . . . . 1 . . . . . . . 1 Seal Access 2 | . . . . . . 1 . . . . . . . 1 Unauthorized Hacks 7 | . 3 1 . . 2 1 . . . . . . . . Terminals 6 | . 3 1 . . 2 . . . . . . . . . Track 2 | . 2 . . . . . . . . . . . . . Assimilate 1 | . . . . . 1 . . . . . . . . . Disrupt 1 | . . 1 . . . . . . . . . . . . Operators 2 | . 1 . . . 1 . . . . . . . . . Fabricators . | . . . . . . . . . . . . . . . Repair Stations . | . . . . . . . . . . . . . . . Recycling Units 1 | . . . . . . 1 . . . . . . . . Mask 1 | . . . . . . 1 . . . . . . . . Scanalyzers . | . . . . . . . . . . . . . . . Garrison Access . | . . . . . . . . . . . . . . . Data Cores Recovered . | . . . . . . . . . . . . . . . Used . | . . . . . . . . . . . . . . . Hacking Detections 40 | . 7 2 . . 8 13 6 . . . . . . 4 Full Trace Events 2 | . . . . . . 1 . . . . . . . 1 Feedback Events . | . . . . . . . . . . . . . . . Feedback Blocked . | . . . . . . . . . . . . . . . Robot Schematics Acquired 5 | . . . . . . . . . . 5 . . . . Robots Built . | . . . . . . . . . . . . . . . Matter . | . . . . . . . . . . . . . . . Time . | . . . . . . . . . . . . . . . Total Robot Build Rating . | . . . . . . . . . . . . . . . Part Schematics Acquired 15 | . . . . . 3 . 2 . . 9 . . . 1 Parts Built . | . . . . . . . . . . . . . . . Matter . | . . . . . . . . . . . . . . . Time . | . . . . . . . . . . . . . . . Total Part Build Rating . | . . . . . . . . . . . . . . . Parts Repaired 3 | . 1 . . . 1 1 . . . . . . . . Time 144 | . 26 . . . 80 38 . . . . . . . . Parts Recycled . | . . . . . . . . . . . . . . . Recycled Matter . | . . . . . . . . . . . . . . . Retrieved Matter . | . . . . . . . . . . . . . . . Retrieved Components 10 | . . . . . . 10 . . . . . . . . Parts Scanalyzed 5 | . . . . . 3 . 2 . . . . . . . Part Schematics Acquired 5 | . . . . . 3 . 2 . . . . . . . Parts Damaged . | . . . . . . . . . . . . . . . Bothacking | -11 -10 -10 -10 -9 -8 -8 -7 -7 -7 -7 -6 -6 -6 -6 ------------ Run | Scr Mat Min Exi Min Mat Sto Fac Low Low Dat Pro Fac Was Fac Used RIF Installer . | . . . . . . . . . . . . . . . Robots Hacked . | . . . . . . . . . . . . . . . Non-combat . | . . . . . . . . . . . . . . . Combat . | . . . . . . . . . . . . . . . Robot Hacks Applied . | . . . . . . . . . . . . . . . Relay Couplers Released 3 | . . . . . . . 3 . . . . . . . Programmers 3 | . . . . . . . 3 . . . . . . . Robots Rewired . | . . . . . . . . . . . . . . . Allies Hacked . | . . . . . . . . . . . . . . . Hacks Repelled . | . . . . . . . . . . . . . . . Allies | -11 -10 -10 -10 -9 -8 -8 -7 -7 -7 -7 -6 -6 -6 -6 -------- Run | Scr Mat Min Exi Min Mat Sto Fac Low Low Dat Pro Fac Was Fac Total Allies 2 | . . . . . 1 . . . . . 1 . . . Largest Group 1 | . . . . . 1 . . . . . 1 . . . Highest-Rated Group 94 | . . . . . 9 . . . . . 94 . . . Highest-Rated Ally 94 | . . . . . 9 . . . . . 94 . . . Total Orders . | . . . . . . . . . . . . . . . Ally Attacks 9 | . . . . . . . . . . . 9 . . . Total Damage 247 | . . . . . . . . . . . 247 . . . Kills 5 | . . . . . . . . . . . 5 . . . Allies Corrupted . | . . . . . . . . . . . . . . . Allies Melted . | . . . . . . . . . . . . . . . Intel | -11 -10 -10 -10 -9 -8 -8 -7 -7 -7 -7 -6 -6 -6 -6 ------- Run | Scr Mat Min Exi Min Mat Sto Fac Low Low Dat Pro Fac Was Fac Robot Analysis Total 2 | . 2 . . . . . . . . . . . . . Derelict Logs Recovered 7 | . . 2 . . . . . 1 3 . 1 . . . Drone Launches . | . . . . . . . . . . . . . . . Drone Recoveries . | . . . . . . . . . . . . . . . Exploration | -11 -10 -10 -10 -9 -8 -8 -7 -7 -7 -7 -6 -6 -6 -6 ------------- Run | Scr Mat Min Exi Min Mat Sto Fac Low Low Dat Pro Fac Was Fac Turns Passed 11484 | 79 982 1240 864 71 1699 2276 1509 368 621 125 1127 148 93 282 Spaces Moved 6070 | 30 765 695 475 40 630 821 736 258 411 95 447 81 69 517 Core 545 | . . . . . . . . . . . . . 28 517 Treads 2965 | . 4 470 475 40 630 821 445 . . . 80 . . . Legs 21 | 21 . . . . . . . . . . . . . . Wheels 2539 | 9 761 225 . . . . 291 258 411 95 367 81 41 . Hover . | . . . . . . . . . . . . . . . Flight . | . . . . . . . . . . . . . . . Fastest Speed 50 | 90 90 130 180 180 180 200 130 130 130 130 140 150 50 50 Average Speed 152 | 112 101 163 180 180 201 202 174 130 134 130 161 150 107 50 Slowest Speed 260 | 150 160 200 180 180 260 205 200 130 160 130 240 150 150 50 Overloaded Moves . | . . . . . . . . . . . . . . . Propulsion Burnouts . | . . . . . . . . . . . . . . . Robots Hopped . | . . . . . . . . . . . . . . . Cave-ins Triggered 1 | . . . . . . . . . . . 1 . . . Exploration Rate (%) 52 | 3 92 98 78 13 53 89 20 58 67 75 63 2 63 15 Regions Visited 14 Branch Regions 8 Pre-discovered Areas 3 | . . 1 . . . . . 1 . 1 . . . . Known Exits Taken 8 | . . . 1 . 1 1 1 1 1 1 1 . . . Unknown Exits Taken 4 | 1 1 1 . 1 . . . . . . . . . . Scrap Searched 8 | . . 2 . . . . . . 5 . 1 . . . Spaces Dug 37 | . . . . . 1 18 4 . . . 14 . . . Terrain Destroyed 200 | . . . . . 20 99 50 . 17 . 14 . . . Melee 4 | . . . . . . 1 . . . . 3 . . . Projectile 10 | . . . . . 5 5 . . . . . . . . AOE 186 | . . . . . 15 93 50 . 17 . 11 . . . Terrain Rammed . | . . . . . . . . . . . . . . . Walls Destroyed . | . . . . . . . . . . . . . . . Machines Disabled . | . . . . . . . . . . . . . . . Actions | -11 -10 -10 -10 -9 -8 -8 -7 -7 -7 -7 -6 -6 -6 -6 --------- Run | Scr Mat Min Exi Min Mat Sto Fac Low Low Dat Pro Fac Was Fac Total 7706 | 63 899 754 484 39 977 1216 885 271 457 97 836 100 89 539 Wait 912 | 20 56 6 . . 200 188 46 . 19 1 346 1 17 12 Move 6057 | 29 764 694 474 39 629 820 735 257 410 94 446 81 68 517 Hop . | . . . . . . . . . . . . . . . Pick Up 98 | . 17 7 5 . 26 14 12 1 . . 9 5 . 2 Fast Attach 47 | 2 4 3 . . 8 7 7 1 4 . 3 5 . 3 Attach 24 | 2 . 4 . . 6 3 3 . . . 5 1 . . Detach 15 | . . 2 . . 2 1 3 . 2 2 2 1 . . Swap 88 | 1 10 6 1 . 22 23 12 . 8 . 3 2 . . Drop 112 | 3 8 8 3 . 32 23 19 2 3 . 7 . 4 . Fire 306 | 6 40 20 1 . 48 117 42 10 11 . 11 . . . Melee 11 | . . . . . . 4 . . . . 3 4 . . Ram 5 | . . . . . . . . . . . . . . 5 Kick . | . . . . . . . . . . . . . . . Crush 28 | . . 4 . . 4 14 6 . . . . . . . Escape Stasis 2 | . . . . . . 2 . . . . . . . . Rewire 1 | . . . . . . . . . . . 1 . . . Trap . | . . . . . . . . . . . . . . . Miscellaneous . | . . . . . . . . . . . . . . . Route ------- -11/Scrapyard -10/Materials (discovered 3 exits: [*Mat x2] / *Min) -10/Mines (discovered 3 exits: [*Mat x2] / *Exi) -10/Exiles (discovered 2 exits: *Min x2) -9/Mines -8/Materials (discovered 3 exits: *Fac x2 / *Sto) -8/Storage -7/Factory -7/Lower Caves -7/Lower Caves (discovered 2 exits: Fac / *Dat) -7/Data Miner -6/Proximity Caves -6/Factory -6/Waste -6/Factory History --------- Turn | Location | Event 1 | -11/Scrapyard | Discovered new exit (range 3) 80 | -11/Scrapyard | Entered Materials 274 | -10/Materials | Discovered new exit (range 10) 324 | -10/Materials | Build established: Mutant 409 | -10/Materials | Discovered new exit (range 9) 429 | -10/Materials | Discovered new exit (range 16) 511 | -10/Materials | Repaired Ion Engine 805 | -10/Materials | Build established: Scavenger-Mutant 1062 | -10/Materials | Entered Mines 1069 | -10/Mines | Met a Derelict bent on vengeance 1169 | -10/Mines | Build established: Mutant 1194 | -10/Mines | Discovered new exit (range 3) 1263 | -10/Mines | Learned location of Storage (-8) 1295 | -10/Mines | Discovered new exit (range 15) 1577 | -10/Mines | Deemed a non-threat by the Exiles lab entrance 1802 | -10/Mines | Found a damaged Exp. Sensor Array with a note attached 1808 | -10/Mines | Found Prototype Device 2194 | -10/Mines | Central database locked down 2294 | -10/Mines | Discovered new exit (range 5) 2302 | -10/Mines | Entered Exiles 2303 | -10/Exiles | Identified exit to Mines 2351 | -10/Exiles | Met 8R-AWN 2376 | -10/Exiles | Met EX-HEX 2436 | -10/Exiles | Met EX-BIN 2542 | -10/Exiles | Aligned with FarCom system 2544 | -10/Exiles | Given EX-Vault access code 2585 | -10/Exiles | Opened EX-Vault 2623 | -10/Exiles | Warned to stay clear of 0b10 Research branches 2671 | -10/Exiles | Met EX-DEC 2766 | -10/Exiles | Visited The Gauntlet 3121 | -10/Exiles | Attacked by the Exiles 3166 | -10/Exiles | Entered Mines 3219 | -9/Mines | Discovered new exit (range 10) 3232 | -9/Mines | Assembled infested the area 3237 | -9/Mines | Assisted by a Guerilla fighting off Assembled 3237 | -9/Mines | Entered Materials 3237 | -8/Materials | Evolved 4 slots: Utility x4 3240 | -8/Materials | Identified Exp. Sensor Array 3291 | -8/Materials | Build established: Hauler-Mutant 3834 | -8/Materials | Discovered new exit (range 9) 4153 | -8/Materials | Discovered new exit (range 13) 4369 | -8/Materials | Identified exit to Storage 4679 | -8/Materials | Discovered new exit (range 7) 4783 | -8/Materials | Repaired Exp. Sensor Array 4811 | -8/Materials | Identified exit to Factory 4936 | -8/Materials | Entered Storage 5001 | -8/Storage | Repaired Reactive Plating 5189 | -8/Storage | Garrison activated, responded to threat 5302 | -8/Storage | Garrison activated, responded to threat 5327 | -8/Storage | Destroyed 7 combat bots 6144 | -8/Storage | Discovered exit to Factory (range 15) 7212 | -8/Storage | Entered Factory 7212 | -7/Factory | Evolved 2 slots: Propulsion x1, Utility x1 8685 | -7/Factory | Discovered new exit (range 15) 8703 | -7/Factory | Identified exit to Lower Caves 8721 | -7/Factory | Entered Lower Caves 9073 | -7/Lower Caves | Discovered new exit (range 8) 9081 | -7/Lower Caves | Identified exit to Lower Caves 9089 | -7/Lower Caves | Entered another Lower Caves area 9236 | -7/Lower Caves | Encountered a Warlord checkpoint 9329 | -7/Lower Caves | Learned location of 1 exit from Factory 9453 | -7/Lower Caves | Learned Factory emergency access door positions 9663 | -7/Lower Caves | Identified exit to Factory 9685 | -7/Lower Caves | Discovered new exit (range 10) 9698 | -7/Lower Caves | Identified exit to Data Miner 9710 | -7/Lower Caves | Entered Data Miner 9712 | -7/Data Miner | Discovered new exit (range 6) 9737 | -7/Data Miner | Met Data Miner 9764 | -7/Data Miner | Learned location of Section 7 (-3) 9764 | -7/Data Miner | Acquired the access code to Warlord's prototype stash 9788 | -7/Data Miner | Received God Mode back door access code from Data Miner 9833 | -7/Data Miner | Identified exit to Proximity Caves 9835 | -7/Data Miner | Entered Proximity Caves 9939 | -6/Proximity Caves | Escorted by Enhanced Grunt 10958 | -6/Proximity Caves | Crushed by falling debris 10958 | -6/Proximity Caves | System corruption reached 10% 10961 | -6/Proximity Caves | Attracted the attention of an 0b10 checkpoint 10962 | -6/Proximity Caves | Entered Factory 10962 | -6/Factory | Evolved 2 slots: Propulsion x1, Utility x1 10963 | -6/Factory | Identified exit to Factory 10989 | -6/Factory | Lost 3 parts (3u) 11110 | -6/Factory | Sucked down chute 11110 | -6/Factory | Entered Waste 11121 | -6/Waste | Spotted C-40 Crusher 11125 | -6/Waste | EMP discharged 11125 | -6/Waste | System corruption reached 10% 11130 | -6/Waste | Spotted C-40 Crusher 11140 | -6/Waste | Spotted C-40 Crusher 11164 | -6/Waste | Crushed by Compactor (1 part destroyed, 1 dropped) 11165 | -6/Waste | Spotted C-40 Crusher 11165 | -6/Waste | Spotted C-40 Crusher 11167 | -6/Waste | Crushed by Compactor (1 part destroyed, 1 dropped) 11173 | -6/Waste | Crushed by Compactor (0 parts destroyed, 1 dropped) 11176 | -6/Waste | Crushed by Compactor (0 parts destroyed, 1 dropped) 11176 | -6/Waste | Spotted C-40 Crusher 11187 | -6/Waste | Released all parts (5) 11193 | -6/Waste | Discovered new exit (range 16) 11203 | -6/Waste | Entered Factory 11218 | -6/Factory | Lost 3 parts (1n2u) 11274 | -6/Factory | Incoming investigation squad redirected 11335 | -6/Factory | Core integrity fell below 50% 11468 | -6/Factory | Core integrity fell below 20% 11479 | -6/Factory | Build established: Mutant 11485 | -6/Factory | Destroyed by G-50 Soldier with Heavy Laser Last Messages --------------- >>Seal Access door sealed. 11363_ Acquired Imp. Cooling System. 11379_ System corrupted: Matter fused (-6). 11395_ System corrupted: Component data lost. 11403_ Slammed into K-01 Serf. 11403_ K-01 Serf destroyed. 11404_ Acquired 19 matter. 11404_ Extracted 8 matter. 11432_ System corrupted: Matter fused (-9). 11439_ Acquired Adv. Heat Sink. 11455_ System corrupted: Heat flow error (+288). 11455_ Slammed into U-05 Engineer. 11460_ Connecting with Terminal... 11461_ Slammed into K-01 Serf. 11461_ K-01 Serf destroyed. 11462_ Acquired 24 matter. 11469_ Imp. Cooling System destroyed. 11473_ System corrupted: Heat flow error (+218). 11485_ Adv. Heat Sink destroyed. Map ----- +----------------------------------------------------+ | ?????????????????????????????????????????????????? | | ?????????????????????????????????????????????????? | | ?????????????????????????????????????????????????? | | ?????????????????????????????????????????????????? | | ?????????????????????????????????????????????????? | | ?????????????????????????????????????????????????? | | ?????????????????????????????????????????????????? | | ?????????????????????????????????????????????????? | | ?????????????????????????????????????????????????? | | ?????????????????????????????????????????????????? | | ?????????????????????????????????????????????????? | | ?????????????????????????????????????????????????? | | ?????????????????????????????????????????????????? | | ????????????##?????????####??????????????????????? | | ????# """""" #????????? #??????????????????????? | | ????# """""" #?????????" #??????????????????????? | | " ?# """""" #???# ???"" #??????????????????????? | | ?# """""" #???# """ #??????????????????????? | | " ?# #?### #??????????????????????? | | ""??# #?? / """ !#??????????????????????? | | R"??# #???? = """ #??????????????????????? | | "???? #?????? """ #########??????????????? | | ?????? ?????????? # ###+##?????????? | | #########+##############+## ku g ??????? | | g ??????? | | ^^ @ s ??????? | | s k ???????? | | #########+################# s ???????? | | ??????????????????????????# #######????????? | | ??????????????????????????## ##??????????????? | | ??????????????????????????? #???????????????? | | #?????????????????????????? #???????????????? | | #?????????????????????????? +???????????????? | | ???????????????????????????? #???????????????? | | ???????????????????????????? #???????????????? | | ??????????????????????????? #???????????????? | | ????????????????????????????? #???????????????? | | ????????????????????????????? #???????????????? | | ????????????????????????????? ??????????????????? | | ?????????????????????????????????????????????????? | | ?????????????????????????????????????????????????? | | ?????????????????????????????????????????????????? | | ?????????????????????????????????????????????????? | | ?????????????????????????????????????????????????? | | ?????????????????????????????????????????????????? | | ?????????????????????????????????????????????????? | | ?????????????????????????????????????????????????? | | ?????????????????????????????????????????????????? | | ?????????????????????????????????????????????????? | | ?????????????????????????????????????????????????? | +----------------------------------------------------+ Best States ------------- Heat Dissipation 83 Coolant Potential 65 Energy Generation 19 Energy Capacity 315 Matter Stores 300 Matter Capacity 300 Sight Range 16 Robot Scan Range 30 Terrain Scan Range 16 Terrain Scan Density 10 Armor Coverage 450 Resistance: KI 20 Utility Shielding 66 Evasion (%) 50 Recoil Reduction 2 Energy Filtering 30 Item Schematics ----------------- Exp. Sensor Array | -8/Materials | Scanalyzed Armor Integrity Analyzer | -8/Materials | Scanalyzed Hcp. Storage Unit | -8/Materials | Scanalyzed Lrn. Sensor Array | -7/Factory | Scanalyzed Flak Gun | -7/Factory | Scanalyzed Combat Drone Bay | -7/Data Miner | Free Lgt. Regenerative Plating | -7/Data Miner | Free Exp. Flexi-carbon Leg | -7/Data Miner | Free Cmb. Gravmag System | -7/Data Miner | Free Triangulator | -7/Data Miner | Free Exp. Terrain Scanner | -7/Data Miner | Free Exp. Targeting Computer | -7/Data Miner | Free Exp. Transmission Jammer | -7/Data Miner | Free Mni. Smartbomb Launcher | -7/Data Miner | Free Adv. Medium Treads | -6/Factory | Hacked Robot Schematics ------------------ S-27 Virus | -7/Data Miner | Free G-50 Soldier | -7/Data Miner | Free G-67 Veteran | -7/Data Miner | Free L-41 Fighter | -7/Data Miner | Free I-36 Angel | -7/Data Miner | Free Fabricated ------------ Nothing Alien Tech Used ----------------- None Achievements -------------- None Challenges ------------ None Game ------ Seed CompactFissionExoskeleton Manual? 0 Play Time 01:16:40 Cumulative 238.0 hours Start 2021.06.22 @ 17:03:52 End 2021.06.22 @ 18:40:38 Sessions 1 Manual Loads 0 Difficulty Rogue Special Mode None Game No. 171 Rogue 171 Adventurer 0 Explorer 0 Win Type - Total 4 Types 4/0/0/0/0/0/0/0/0 Lore% 49 Gallery% 71 Achievement% 55 Wizard Run 0 Options --------- ASCII 0 Keyboard 0 Movement Numpad Keybinds 0 Fullscreen 2 Font 18/TerminusBold Map View 76x50 Tactical HUD 1 Map Filters NONE Filters NONE Steam 1 RUN: 6e720314-f69e-4af9-8710-a8d90512f474